bitfinex/quotes_SOLUSD_20250721
["timestamp","ask_amount","ask_price","bid_price","bid_amount"]
[1753090280797,11.2041194,190.48,190.47,0.03]
[1753090281284,11.2041194,190.48,190.46,0.03]
[1753090281477,5.9542244,190.47,190.46,0.03]
[1753090282704,11.20439503,190.47,190.46,0.03]
[1753090283088,47.96439503,190.47,190.46,0.03]
[1753090284002,11.20439503,190.47,190.46,0.03]
[1753090284405,47.98439503,190.47,190.46,0.03]
[1753090284906,73.98439503,190.47,190.46,0.03]
[1753090286800,37.20439503,190.47,190.46,0.03]
[1753090286986,73.98439503,190.47,190.46,0.03]
[1753090288510,37.20439503,190.47,190.46,0.03]
[1753090288707,73.98439503,190.47,190.46,0.03]
[1753090289497,37.20439503,190.47,190.46,0.03]
[1753090289705,73.98439503,190.47,190.46,0.03]
[1753090291089,31.25017063,190.47,190.46,0.03]
[1753090291289,37.20439503,190.47,190.46,0.03]
[1753090291517,73.98439503,190.47,190.46,0.03]
[1753090291694,6.0142244,190.5,190.46,0.03]
[1753090292211,5.9542244,190.47,190.46,0.03]
[1753090293185,36.78,190.49,190.46,0.03]
[1753090293186,0.06,190.5,190.46,0.03]
[1753090293391,5.9542244,190.47,190.46,0.03]
[1753090293592,0.06,190.5,190.46,1.03]
[1753090293825,6.0142244,190.5,190.46,2.5388]
[1753090294964,0.06,190.5,190.46,7.78915631]
[1753090295714,5.9542244,190.49,190.46,2.5388]
[1753090296594,6.0142244,190.5,190.47,16.78468397]
[1753090296793,0.06,190.5,190.47,16.78468397]
[1753090297216,0.06,190.5,190.48,5.249895]
[1753090297906,6.0142244,190.53,190.51,0.94]
[1753090298332,0.06,190.53,190.51,0.94]
[1753090298907,0.06,190.53,190.52,16.78468397]
[1753090299216,0.06,190.53,190.52,22.03347674]
[1753090303099,0.06,190.53,190.52,58.79347674]
[1753090303503,0.06,190.53,190.52,64.74770114]
[1753090303713,0.06,190.53,190.52,66.25650114]
[1753090304937,1e-08,190.53,190.52,66.25650114]
[1753090305129,0.06,190.54,190.52,72.85838041]
[1753090305130,1e-08,190.54,190.52,72.85838041]
[1753090305317,2.73760358,190.69,190.61,0.94]
[1753090305632,149.8,190.88,190.61,0.94]
[1753090305633,1e-08,190.82,190.78,16.78468397]
[1753090305835,5.9542244,191.0,190.92,26.0]
[1753090306015,30.0,190.93,190.9,16.78468397]
[1753090306232,30.0,190.93,190.92,48.73890837]
[1753090306543,30.0,190.93,190.92,8.93455126]
[1753090306747,30.0,190.93,190.92,22.73890837]
[1753090306940,5.9542244,191.1,190.94,26.0]
[1753090307130,5.23258856,191.11,190.98,16.78468397]
[1753090307335,10.75,191.2,191.01,5.9542244]
[1753090307538,2.72740021,191.17,191.03,22.73890837]
[1753090307851,5.56008222,191.11,191.05,5.9542244]
[1753090308153,0.75,191.2,191.07,16.78468397]
[1753090308330,5.9542244,191.15,191.09,16.78468397]
[1753090308652,5.9542244,191.15,191.09,22.73890837]
[1753090308950,5.9542244,191.15,191.09,5.9542244]
[1753090309133,31.9801856,191.2,191.08,16.78468397]
[1753090309332,8.67106574,191.16,191.11,16.78468397]
[1753090310038,8.67106574,191.16,191.08,16.78468397]
[1753090310237,8.67106574,191.15,191.08,25.45574971]
[1753090310442,8.67106574,191.15,191.08,16.78468397]
[1753090310649,8.67106574,191.15,191.09,8.67106574]
[1753090310844,8.67106574,191.13,191.08,16.78468397]
[1753090311049,8.67106574,191.12,191.08,16.78468397]
[1753090311344,0.75,191.2,191.16,16.78468397]
[1753090311549,0.75,191.2,191.15,26.0]
[1753090311923,8.67106574,191.19,191.13,25.45574971]
[1753090312145,8.67106574,191.14,191.08,42.78468397]
[1753090312354,8.67106574,191.11,191.1,42.78468397]
[1753090312538,0.75,191.2,191.1,26.0]
[1753090312843,8.67106574,191.15,191.11,16.78468397]
[1753090313151,9.42106574,191.2,191.15,16.78468397]
[1753090313335,0.75,191.2,191.15,24.63525912]
[1753090313531,9.42106574,191.2,191.15,16.78468397]
[1753090313941,0.75,191.2,191.15,33.30632486]
[1753090314151,0.75,191.2,191.15,24.63525912]
[1753090314446,9.42106574,191.2,191.15,24.63525912]
[1753090314748,8.67106574,191.19,191.15,24.63525912]
[1753090315046,8.67106574,191.18,191.15,16.78468397]
[1753090315245,5.98017961,191.2,191.15,16.78468397]
[1753090315437,8.67106574,191.17,191.15,16.78468397]
[1753090315650,5.98017961,191.2,191.15,16.78468397]
[1753090315651,8.67106574,191.19,191.15,16.78468397]
[1753090315826,9.42106574,191.2,191.15,16.78468397]
[1753090316022,0.75,191.2,191.15,25.45574971]
[1753090316222,0.75,191.2,191.15,24.63525912]
[1753090316426,0.75,191.2,191.19,16.78468397]
[1753090316623,0.75,191.2,191.19,25.45574971]
[1753090316852,0.75,191.2,191.18,16.78468397]
[1753090317039,0.75,191.2,191.19,8.67106574]
[1753090317755,6.6225,191.42,191.23,90.02468397]
[1753090317952,8.67106574,191.37,191.31,25.45574971]
[1753090318458,8.67106574,191.33,191.29,16.78468397]
[1753090318828,8.67106574,191.33,191.28,16.78468397]
[1753090319140,44.40729324,191.41,191.24,16.78468397]
[1753090319341,13.89807155,191.32,191.27,16.78468397]
[1753090320052,5.22700581,191.32,191.27,16.78468397]
[1753090320253,8.67106574,191.33,191.29,16.78468397]
[1753090320554,8.67106574,191.34,191.29,16.78468397]
[1753090321155,8.67106574,191.33,191.29,16.78468397]
[1753090321457,13.89766332,191.33,191.31,16.78468397]
[1753090321661,5.22659758,191.33,191.31,16.78468397]
[1753090321832,8.67106574,191.32,191.31,17.74540503]
[1753090322032,8.67106574,191.32,191.2,9.61106574]
[1753090322244,44.2930273,191.33,191.23,16.78468397]
[1753090322446,44.2930273,191.33,191.2,46.07106574]
[1753090322650,44.2930273,191.33,191.26,16.78468397]
[1753090322651,8.67106574,191.31,191.26,16.78468397]
[1753090322848,8.67106574,191.28,191.26,16.78468397]
[1753090323048,8.67106574,191.27,191.26,7.64380293]
[1753090323246,8.67106574,191.27,191.21,16.78468397]
[1753090323440,8.67106574,191.24,191.21,16.78468397]
[1753090323637,8.67106574,191.23,191.21,16.78468397]
[1753090324154,8.67106574,191.24,191.21,16.78468397]
[1753090324350,8.67106574,191.28,191.21,25.45574971]
[1753090324549,8.67106574,191.27,191.21,23.57910286]
[1753090324759,8.67106574,191.28,191.23,16.78468397]
[1753090325060,8.67106574,191.27,191.23,23.57910286]
[1753090325257,8.67106574,191.28,191.23,23.57910286]
[1753090325458,5.22821142,191.27,191.23,23.57910286]
[1753090326171,5.22821142,191.27,191.24,6.79441889]
[1753090326959,5.22739153,191.3,191.25,16.78468397]
[1753090327141,8.67106574,191.31,191.25,25.45574971]
[1753090327574,8.67106574,191.31,191.25,32.2501686]
[1753090327858,8.67106574,191.31,191.26,8.67106574]
[1753090328050,8.67106574,191.32,191.25,23.57910286]
[1753090328250,5.22629873,191.34,191.28,8.67106574]
[1753090328456,5.22629873,191.34,191.3,16.78468397]
[1753090328857,5.22629873,191.34,191.31,1.0052645]
[1753090329476,13.06430161,191.37,191.31,1.0052645]
[1753090330777,5.22493338,191.39,191.32,25.45574971]
[1753090330962,8.67106574,191.38,191.32,25.45574971]
[1753090331164,5.22493338,191.39,191.34,16.78468397]
[1753090331472,6.5977,191.48,191.36,16.78468397]
[1753090331473,8.67106574,191.41,191.36,16.78468397]
[1753090331853,8.67106574,191.4,191.37,1.00494932]
[1753090332060,8.67106574,191.38,191.37,1.00494932]
[1753090332783,8.67106574,191.39,191.37,1.00494932]
[1753090332961,8.67106574,191.38,191.33,16.78468397]
[1753090333479,5.22547943,191.37,191.33,16.78468397]
[1753090333859,13.89654517,191.37,191.33,16.78468397]
[1753090334572,0.06,191.42,191.36,51.45574971]
[1753090334865,0.06,191.42,191.41,79.10514971]
[1753090335063,18.26627002,191.61,191.49,16.78468397]
[1753090335262,5.21893429,191.61,191.56,16.78468397]
[1753090335457,13.04542868,191.64,191.58,16.78468397]
[1753090335458,18.26354598,191.64,191.58,16.78468397]
[1753090335856,13.88918304,191.64,191.58,8.67106574]
[1753090336164,5.2181173,191.64,191.6,16.78468397]
[1753090336684,5.96784932,191.65,191.62,16.78468397]
[1753090336889,0.75,191.65,191.64,16.78468397]
[1753090337265,0.75,191.65,191.58,15.73]
[1753090337266,5.96807989,191.65,191.58,37.48]
[1753090337562,0.75,191.65,191.64,55.79781352]
[1753090337766,0.75,191.65,191.64,63.19889908]
[1753090337967,0.75,191.65,191.64,16.78468397]
[1753090338277,0.75,191.65,191.64,29.79781352]
[1753090338694,0.75,191.65,191.64,37.11395043]
[1753090338856,0.75,191.65,191.64,33.00840988]
[1753090339059,0.25,191.65,191.64,20.27735432]
[1753090339279,0.25,191.65,191.64,12.67914342]
[1753090339467,0.25,191.65,191.64,25.69227297]
[1753090339799,0.25,191.65,191.64,37.64]
[1753090340297,0.25,191.65,191.64,50.65312955]
[1753090340455,0.25,191.65,191.64,57.82919932]
[1753090340661,0.25,191.65,191.64,58.12252571]
[1753090340874,0.25,191.65,191.64,54.42468397]
[1753090341077,0.25,191.65,191.64,30.75653196]
[1753090341278,0.25,191.65,191.64,75.90592812]
[1753090341469,0.25,191.65,191.64,17.74340241]
[1753090341869,0.25,191.65,191.64,55.42340241]
[1753090342180,18.48097458,191.65,191.64,0.95871844]
[1753090342366,0.25,191.65,191.64,38.67871844]
[1753090342565,5.46784503,191.65,191.64,17.74340241]
[1753090342765,5.46784503,191.65,191.64,55.46340241]
[1753090343172,5.46784503,191.65,191.64,38.67871844]
[1753090343360,5.46784503,191.65,191.64,0.95871844]
[1753090345775,18.48097458,191.65,191.64,0.95871844]
[1753090346406,18.48097458,191.65,191.64,1e-08]
[1753090349376,26.0,191.62,191.48,7.05455171]
[1753090349570,13.01312955,191.52,191.46,20.06768126]
[1753090349778,76.77312955,191.62,191.48,13.01312955]
[1753090350074,13.01312955,191.5,191.45,37.76]
[1753090350381,13.01312955,191.48,191.45,37.76]
[1753090350576,13.01312955,191.48,191.35,70.15211099]
[1753090350577,13.01312955,191.47,191.41,13.01312955]
[1753090350784,13.01312955,191.44,191.4,37.78]
[1753090351001,5.22384161,191.43,191.4,37.78]
[1753090351178,5.22329589,191.45,191.4,50.79312955]
[1753090351392,13.01312955,191.44,191.4,37.78]
[1753090351910,13.01312955,191.42,191.35,7.4604]
[1753090352215,13.01312955,191.39,191.35,37.82]
[1753090352717,13.01312955,191.47,191.39,16.78468397]
[1753090353014,5.22302308,191.46,191.41,16.78468397]
[1753090353181,18.23615263,191.46,191.41,23.83923568]
[1753090353387,13.01312955,191.42,191.36,8.5502355]
[1753090353584,13.01312955,191.38,191.34,16.78468397]
[1753090353789,13.01312955,191.37,191.34,16.78468397]
[1753090354005,13.01312955,191.36,191.33,1.0813577]
[1753090354523,44.39569621,191.46,191.33,1.0813577]
[1753090354718,13.01312955,191.4,191.35,16.78468397]
[1753090355058,5.22547943,191.37,191.35,16.78468397]
[1753090355321,18.23860898,191.37,191.33,17.86604167]
[1753090355484,5.22547943,191.37,191.33,17.86604167]
[1753090355691,13.01312955,191.36,191.33,1.0813577]
[1753090356332,13.01312955,191.35,191.33,1.0813577]
[1753090357185,5.22629873,191.34,191.33,1.0813577]
[1753090357386,13.01312955,191.36,191.32,35.9713577]
[1753090357598,5.22606147,191.35,191.32,35.9713577]
[1753090357786,18.23919102,191.35,191.32,35.9713577]
[1753090358211,5.22606147,191.35,191.32,35.9713577]
[1753090358388,5.22572373,191.37,191.33,16.78468397]
[1753090359224,18.23885328,191.37,191.33,16.78468397]
[1753090359628,13.05818738,191.46,191.36,29.79781352]
[1753090359799,5.22302308,191.46,191.42,26.0]
[1753090360421,5.22302308,191.46,191.39,16.78468397]
[1753090360630,18.23615263,191.46,191.4,13.01312955]
[1753090360987,18.23615263,191.46,191.39,29.79781352]
[1753090361190,5.22056904,191.55,191.45,16.78468397]
[1753090361517,13.01312955,191.54,191.47,13.01312955]
[1753090361899,18.27199164,191.55,191.46,29.79781352]
[1753090361900,13.01312955,191.52,191.46,29.79781352]
[1753090362096,18.27199164,191.55,191.4,1.0]
[1753090362293,13.01312955,191.46,191.4,67.67781352]
[1753090362615,13.01312955,191.45,191.4,54.66468397]
[1753090363190,5.22356874,191.44,191.4,54.66468397]
[1753090363420,18.23669829,191.44,191.4,54.66468397]
[1753090363624,26.10284521,191.55,191.41,13.01312955]
[1753090363828,26.10284521,191.55,191.4,86.01468397]
[1753090363829,13.01312955,191.48,191.43,16.78468397]
[1753090364124,5.22084159,191.54,191.43,16.78468397]
[1753090364125,18.27294558,191.54,191.44,37.86]
[1753090364428,13.01312955,191.47,191.44,37.86]
[1753090364624,13.01312955,191.45,191.41,37.86]
[1753090364804,44.37715357,191.54,191.41,37.86]
[1753090365006,13.01312955,191.42,191.39,16.78468397]
[1753090365321,5.22438744,191.41,191.39,54.64468397]
[1753090365524,13.01312955,191.42,191.39,54.64468397]
[1753090366196,13.01312955,191.43,191.39,54.64468397]
[1753090366822,13.01312955,191.4,191.36,26.0]
[1753090367003,13.01312955,191.37,191.32,0.03]
[1753090367203,5.22629873,191.34,191.32,37.89]
[1753090367511,18.23942828,191.34,191.32,37.89]
[1753090367709,5.22629873,191.34,191.32,37.89]
[1753090367904,13.01312955,191.33,191.32,37.89]
[1753090368112,13.01312955,191.33,191.32,0.03]
[1753090368495,5.22629873,191.34,191.32,0.03]
[1753090368697,13.01312955,191.33,191.32,0.03]
[1753090368905,18.23942828,191.34,191.32,0.03]
[1753090369517,13.01312955,191.38,191.33,16.78468397]
[1753090369714,13.01312955,191.38,191.34,37.88]
[1753090370096,13.01312955,191.37,191.34,37.88]
[1753090370296,18.28344564,191.43,191.35,16.78468397]
[1753090370599,13.01312955,191.41,191.35,16.78468397]
[1753090370994,31.29657519,191.43,191.36,13.01312955]
[1753090371194,5.22384161,191.43,191.39,13.01312955]
[1753090371395,18.28153563,191.45,191.39,37.9]
[1753090371595,31.29466518,191.45,191.39,37.9]
[1753090372021,18.28153563,191.45,191.39,50.91312955]
[1753090372195,31.29466518,191.45,191.39,37.9]
[1753090372400,13.01312955,191.43,191.39,37.9]
[1753090373013,18.28153563,191.45,191.39,37.9]
[1753090373211,18.28153563,191.45,191.4,13.01312955]
[1753090373410,18.28153563,191.45,191.41,13.01312955]
[1753090373606,26.11176093,191.49,191.39,37.9]
[1753090373607,5.22302308,191.46,191.44,13.01312955]
[1753090373814,5.22302308,191.46,191.43,37.88]
[1753090374014,5.22302308,191.46,191.43,50.89312955]
[1753090374227,5.22302308,191.46,191.43,37.88]
[1753090375935,0.06,191.46,191.43,37.88]
[1753090376718,0.06,191.46,191.45,29.79781352]
[1753090377015,0.06,191.46,191.45,68.12840968]
[1753090377316,0.06,191.46,191.45,55.11528013]
[1753090377503,0.06,191.46,191.45,23.76528013]
[1753090377703,0.06,191.46,191.45,54.64468397]
[1753090378103,0.06,191.46,191.45,67.65781352]
[1753090378405,0.06,191.46,191.45,54.64468397]
[1753090378607,0.06,191.46,191.45,67.65781352]
[1753090379511,0.06,191.46,191.45,54.64468397]
[1753090379829,0.06,191.46,191.45,67.65781352]
[1753090382116,0.06,191.46,191.45,68.65781352]
[1753090382315,0.06,191.46,191.45,55.64468397]
[1753090383047,0.06,191.46,191.45,68.65781352]
[1753090383259,0.06,191.54,191.45,68.65781352]
[1753090383260,0.06,191.54,191.51,16.78468397]
[1753090383427,0.06,191.54,191.53,29.79781352]
[1753090383945,13.07312955,191.54,191.5,0.84]
[1753090384156,13.07312955,191.54,191.48,0.84]
[1753090384157,13.01312955,191.51,191.48,0.84]
[1753090384320,13.01312955,191.51,191.48,37.84]
[1753090384512,0.06,191.54,191.48,37.84]
[1753090384849,13.01312955,191.52,191.48,37.84]
[1753090385345,0.06,191.5,191.48,37.84]
[1753090385522,0.06,191.5,191.48,38.68]
[1753090388240,8.69775824,191.5,191.48,38.68]
[1753090389040,0.06,191.5,191.48,38.68]
[1753090389241,8.63775824,191.49,191.48,38.68]
[1753090389544,0.06,191.5,191.48,38.68]
[1753090389846,26.0,191.46,191.35,0.84]
[1753090390021,8.63775824,191.39,191.35,38.72]
[1753090390221,5.22520639,191.38,191.35,38.72]
[1753090390418,8.63775824,191.4,191.35,38.72]
[1753090391236,13.04951217,191.4,191.35,38.72]
[1753090391814,5.22411451,191.42,191.35,38.72]
[1753090392022,13.04951217,191.39,191.35,37.88]
[1753090392225,5.22520639,191.38,191.35,37.88]
[1753090392415,13.04951217,191.36,191.32,0.03]
[1753090392628,13.04951217,191.36,191.33,37.86]
[1753090393247,13.04951217,191.39,191.33,50.90951217]
[1753090393417,13.04951217,191.37,191.33,37.86]
[1753090393617,13.04951217,191.36,191.33,37.86]
[1753090393936,13.04951217,191.34,191.32,0.03]
[1753090394255,13.04951217,191.33,191.32,0.03]
[1753090395118,32.5132,191.4,191.32,0.03]
[1753090395119,6.5132,191.4,191.32,0.03]
[1753090395320,13.04951217,191.37,191.32,0.03]
[1753090395838,13.04951217,191.37,191.32,13.07951217]
[1753090396243,13.04951217,191.38,191.32,29.86419614]
[1753090396442,13.04951217,191.38,191.33,5.22657189]
[1753090396666,13.04951217,191.38,191.34,37.9]
[1753090396840,13.04951217,191.36,191.32,0.03]
[1753090397026,13.04951217,191.35,191.32,37.95]
[1753090398041,5.22411451,191.42,191.33,0.03]
[1753090398252,13.04951217,191.36,191.33,0.03]
[1753090398546,26.0,191.44,191.33,0.03]
[1753090398547,5.22384161,191.43,191.33,0.03]
[1753090398738,13.04951217,191.35,191.33,0.03]
[1753090398922,13.0609686,191.41,191.33,0.03]
[1753090399123,5.22384161,191.43,191.33,178.70419614]
[1753090399325,13.04951217,191.41,191.35,13.04951217]
[1753090399531,5.22384161,191.43,191.35,13.04951217]
[1753090399532,13.04951217,191.4,191.35,37.9]
[1753090399722,13.04951217,191.39,191.35,37.9]
[1753090400654,5.22468222,191.4,191.33,148.87]
[1753090400956,0.06,191.46,191.38,29.83419614]
[1753090401166,13.04951217,191.45,191.39,45.02934916]
[1753090401351,0.06,191.46,191.39,45.02934916]
[1753090401352,13.04951217,191.43,191.39,45.02934916]
[1753090401655,13.04951217,191.44,191.39,45.02934916]
[1753090402026,5.28304176,191.46,191.39,45.02934916]
[1753090402247,13.04951217,191.43,191.39,45.02934916]
[1753090402949,0.06,191.46,191.41,13.04951217]
[1753090403157,0.06,191.46,191.4,16.78468397]
[1753090403158,18.33267389,191.46,191.42,37.92]
[1753090403451,13.04951217,191.44,191.42,37.92]
[1753090403756,13.04951217,191.44,191.39,38.76]
[1753090404631,18.27327814,191.44,191.39,38.76]
[1753090404933,5.22376597,191.44,191.39,38.76]
[1753090405127,18.27327814,191.44,191.39,38.76]
[1753090406158,18.27327814,191.44,191.39,186.76]
[1753090407055,5.22376597,191.44,191.39,199.80951217]
[1753090407252,18.27327814,191.44,191.39,186.76]
[1753090408159,13.04951217,191.42,191.39,186.76]
[1753090408337,13.04951217,191.43,191.39,38.76]
[1753090408953,5.22411451,191.42,191.39,38.76]
[1753090409739,18.27362668,191.42,191.39,38.76]
[1753090410655,13.04951217,191.41,191.39,38.76]
[1753090411039,5.22466039,191.4,191.39,38.76]
[1753090411570,5.22466039,191.4,191.39,0.84]
[1753090412066,5.22329589,191.45,191.39,148.84]
[1753090412272,8.64731711,191.44,191.39,148.84]
[1753090412760,13.870613,191.45,191.4,37.8]
[1753090413057,13.870613,191.45,191.4,186.64]
[1753090413638,8.64731711,191.44,191.4,186.64]
[1753090414971,8.70731711,191.46,191.41,16.78468397]
[1753090415146,8.70731711,191.46,191.42,37.76]
[1753090415344,8.70731711,191.46,191.42,38.6]
[1753090415345,8.64731711,191.45,191.42,38.6]
[1753090415567,8.70731711,191.46,191.42,38.6]
[1753090416246,8.64731711,191.45,191.42,38.6]
[1753090416963,8.64731711,191.44,191.42,38.6]
[1753090417285,5.22332558,191.45,191.42,38.6]
[1753090417579,8.64731711,191.44,191.42,38.6]
[1753090417757,8.64731711,191.45,191.42,38.6]
[1753090418276,0.06,191.46,191.42,38.6]
[1753090418277,8.70731711,191.46,191.42,38.6]
[1753090418894,0.06,191.46,191.42,38.6]
[1753090419290,8.70731711,191.46,191.42,38.6]
[1753090420074,8.64731711,191.44,191.42,38.54]
[1753090421468,0.06,191.46,191.42,38.54]
[1753090421669,13.93035394,191.46,191.42,38.54]
[1753090422268,13.93035394,191.46,191.42,186.54]
[1753090423770,8.70731711,191.46,191.42,186.54]
[1753090424284,0.06,191.46,191.43,25.43200108]
[1753090424601,0.06,191.46,191.44,37.66]
[1753090424982,0.06,191.46,191.44,44.72997694]
[1753090426466,0.06,191.46,191.44,53.37729405]
[1753090426695,0.06,191.46,191.45,32.50197802]
[1753090426895,0.06,191.5,191.47,0.78]
[1753090427195,0.06,191.5,191.49,25.43200108]
[1753090427499,0.06,191.5,191.49,12.95153804]
[1753090427679,0.06,191.5,191.49,37.68]
[1753090428196,0.06,191.5,191.49,54.46468397]
[1753090428371,0.06,191.5,191.49,63.11200108]
[1753090428873,0.06,191.5,191.49,97.06907414]
[1753090429076,0.06,191.5,191.49,109.61136676]
[1753090429587,0.06,191.5,191.49,31.93404965]
[1753090429894,0.06,191.5,191.49,71.28452413]
[1753090430189,0.06,191.5,191.49,78.24136676]
[1753090430395,0.06,191.5,191.49,258.37136676]
[1753090430596,0.06,191.5,191.49,274.10136676]
[1753090430786,0.06,191.5,191.49,227.02136676]
[1753090432174,0.06,191.54,191.53,0.72]
[1753090432377,0.06,191.54,191.53,38.3]
[1753090432583,0.06,191.54,191.53,211.73200108]
[1753090432794,0.06,191.54,191.53,218.99217704]
[1753090433180,0.06,191.54,191.53,155.88017596]
[1753090433371,0.06,191.54,191.53,186.28]
[1753090435591,0.06,191.54,191.53,37.64]
[1753090435781,0.06,191.54,191.53,70.95217704]
[1753090435988,0.06,191.54,191.53,62.30485993]
[1753090436593,0.06,191.54,191.53,63.69200108]
[1753090436896,0.06,191.54,191.53,78.04462703]
[1753090437102,0.06,191.54,191.53,86.34740522]
[1753090438672,0.06,191.54,191.53,133.42740522]
[1753090440477,0.06,191.54,191.53,124.78008811]
[1753090440673,0.06,191.54,191.53,133.42740522]
[1753090441600,0.25,191.65,191.6,0.56]
[1753090441899,0.25,191.65,191.61,53.56749307]
[1753090442801,0.25,191.65,191.63,16.78468397]
[1753090443101,0.25,191.65,191.64,37.64]
[1753090443306,0.25,191.65,191.64,38.2]
[1753090444899,8.89731711,191.65,191.64,0.56]
[1753090445132,0.25,191.65,191.64,0.56]
[1753090445901,0.25,191.65,191.62,37.62]
[1753090445902,8.89731711,191.65,191.62,0.56]
[1753090446108,8.64731711,191.63,191.62,0.56]
[1753090446781,0.25,191.65,191.62,0.56]
[1753090446982,8.89731711,191.65,191.62,0.56]
[1753090447183,8.89731711,191.65,191.62,38.16]
[1753090448001,8.89731711,191.65,191.62,186.16]
[1753090449003,0.25,191.65,191.62,186.16]
[1753090449311,0.25,191.65,191.62,38.16]
[1753090451606,6.12976947,191.65,191.63,37.54]
[1753090452593,0.25,191.65,191.63,37.54]
[1753090452788,6.12976947,191.65,191.63,37.54]
[1753090454103,6.12976947,191.65,191.63,38.1]
[1753090455787,6.79976947,191.65,191.63,38.1]
[1753090456387,5.87976947,191.64,191.63,38.04]
[1753090456595,0.67,191.64,191.63,38.04]
[1753090457013,6.54976947,191.64,191.63,0.56]
[1753090458403,0.67,191.64,191.63,0.56]
[1753090458608,6.54976947,191.64,191.63,0.56]
[1753090459312,0.67,191.64,191.63,0.56]
[1753090459509,6.12976947,191.65,191.63,0.56]
[1753090459810,6.79976947,191.65,191.63,0.56]
[1753090461307,0.25,191.65,191.63,0.56]
[1753090461485,0.92,191.65,191.63,0.56]
[1753090461811,6.54976947,191.64,191.63,0.56]
[1753090462013,6.54976947,191.64,191.59,0.56]
[1753090462214,11.75953894,191.6,191.55,0.56]
[1753090462409,5.87976947,191.56,191.51,0.56]
[1753090462585,0.67,191.59,191.51,0.56]
[1753090462907,5.87976947,191.52,191.51,0.56]
[1753090463117,5.87976947,191.53,191.51,0.56]
[1753090463497,5.87976947,191.6,191.51,0.56]
[1753090463702,5.87976947,191.54,191.51,0.56]
[1753090463891,6.54976947,191.54,191.51,0.56]
[1753090465514,0.67,191.53,191.51,0.56]
[1753090466123,5.87976947,191.54,191.51,0.56]
[1753090466422,6.54976947,191.54,191.51,0.56]
[1753090466916,0.67,191.53,191.51,0.59]
[1753090467101,6.54976947,191.52,191.51,0.59]
[1753090467999,0.67,191.52,191.51,0.59]
[1753090468198,6.54976947,191.52,191.51,0.59]
[1753090473299,0.7,191.54,191.51,0.59]
[1753090473500,5.87976947,191.52,191.51,0.59]
[1753090473721,6.57976947,191.52,191.51,0.59]
[1753090474509,0.7,191.52,191.51,0.59]
[1753090474703,5.87976947,191.54,191.51,0.59]
[1753090474909,0.7,191.55,191.51,0.59]
[1753090475142,5.87976947,191.54,191.51,0.59]
[1753090475713,6.57976947,191.54,191.51,0.59]
[1753090476315,0.7,191.53,191.51,0.59]
[1753090477116,5.87976947,191.54,191.51,0.59]
[1753090477622,6.57976947,191.53,191.51,0.59]
[1753090478003,0.7,191.53,191.51,0.59]
[1753090478314,5.87976947,191.54,191.51,0.59]
[1753090478708,2.72510441,191.62,191.51,0.59]
[1753090479026,5.87976947,191.56,191.51,148.59]
[1753090479229,0.7,191.55,191.52,37.42]
[1753090479613,6.57976947,191.55,191.52,37.42]
[1753090479814,0.7,191.57,191.52,37.98]
[1753090480118,5.87976947,191.57,191.52,37.98]
[1753090480431,5.87976947,191.6,191.54,48.66445344]
[1753090480721,6.57976947,191.61,191.55,51.01439792]
[1753090481113,6.57976947,191.61,191.55,45.13462845]
[1753090481315,5.87976947,191.6,191.55,44.46462845]
[1753090481510,6.57976947,191.6,191.55,44.46462845]
[1753090482114,6.57976947,191.6,191.55,45.13462845]
[1753090482324,5.87976947,191.58,191.54,148.56]
[1753090482529,6.57976947,191.57,191.55,37.42]
[1753090482830,0.7,191.56,191.55,37.42]
[1753090483033,0.7,191.56,191.55,37.98]
[1753090485613,5.87976947,191.57,191.55,37.98]
[1753090485934,0.7,191.56,191.55,37.98]
[1753090486241,6.57976947,191.57,191.55,37.98]
[1753090488828,0.7,191.56,191.55,0.56]
[1753090489037,6.57976947,191.56,191.55,0.56]
[1753090490842,6.57976947,191.56,191.54,0.03]